bitfinex-derivatives/quotes_BTCF0:USTF0_20241103
["timestamp","ask_amount","ask_price","bid_price","bid_amount"]
[1730599550359,0.09772,68986.0,68984.0,0.072505]
[1730599550571,0.09772,68986.0,68981.0,0.04320898]
[1730599550758,0.09772,68986.0,68985.0,0.072504]
[1730599551263,0.00084,68990.0,68989.0,0.0725]
[1730599551569,0.072492,68997.0,68988.0,0.13916822]
[1730599551763,0.09728,68996.0,68995.0,0.072493]
[1730599552165,0.07249,68999.0,68997.0,0.072491]
[1730599553057,0.09945494,69002.0,68993.0,0.46792898]
[1730599553370,0.17194294,69002.0,68999.0,0.072489]
[1730599553584,0.07466294,69002.0,68999.0,0.072489]
[1730599553873,0.072488,69001.0,68999.0,0.072489]
[1730599554365,0.00217494,69002.0,68999.0,0.072489]
[1730599554676,0.13916822,69000.0,68993.0,0.10712898]
[1730599554997,0.21166222,68995.0,68993.0,0.10580898]
[1730599555469,0.21166222,68995.0,68994.0,0.04320898]
[1730599555774,0.072495,68994.0,68993.0,0.07320898]
[1730599556164,0.072495,68994.0,68993.0,0.07322038]
[1730599556476,0.072495,68994.0,68993.0,0.102496]
[1730599560972,0.072495,68994.0,68986.0,0.033]
[1730599560973,0.072497,68992.0,68990.0,0.05771729]
[1730599561165,0.072499,68990.0,68989.0,0.05771729]
[1730599561371,0.072499,68990.0,68989.0,0.05764162]
[1730599561877,0.0725,68989.0,68988.0,0.05764162]
[1730599564677,0.13916822,68991.0,68987.0,0.072501]
[1730599564867,0.072501,68988.0,68987.0,0.072501]
[1730599565367,0.072503,68986.0,68985.0,0.05764162]
[1730599565560,0.21167122,68986.0,68985.0,0.05764162]
[1730599567778,0.25494204,68986.0,68985.0,0.05764162]
[1730599569079,0.21167122,68986.0,68985.0,0.05764162]
[1730599569766,0.072503,68986.0,68985.0,0.05764162]
[1730599569967,0.072503,68986.0,68981.0,0.07205138]
[1730599570170,0.00076,68988.0,68987.0,0.072502]
[1730599570370,0.13916822,68990.0,68989.0,0.0725]
[1730599571172,0.13916822,68990.0,68989.0,0.14469547]
[1730599571477,0.13916822,68990.0,68989.0,0.0725]
[1730599572177,0.072496,68994.0,68993.0,0.072496]
[1730599572378,0.45888,68996.0,68995.0,0.072494]
[1730599572572,0.45812,68996.0,68995.0,0.072494]
[1730599572778,0.3608,68996.0,68995.0,0.072494]
[1730599574172,0.14134316,69002.0,69001.0,0.072488]
[1730599574569,0.14134316,69002.0,69001.0,0.433288]
[1730599576086,0.14134316,69002.0,69001.0,0.5290084]
[1730599576772,0.14134316,69002.0,69001.0,0.61581462]
[1730599577281,0.14134316,69002.0,69001.0,0.5290084]
[1730599577471,0.14134316,69002.0,69001.0,0.61578475]
[1730599577666,0.14134316,69002.0,69001.0,0.5290084]
[1730599578672,0.21383016,69002.0,69001.0,0.5290084]
[1730599579379,0.21383016,69002.0,69001.0,0.4565204]
[1730599579589,0.21383016,69002.0,69000.0,0.07231766]
[1730599579590,0.57463016,69002.0,69000.0,0.07231766]
[1730599579766,0.57463016,69002.0,68999.0,0.07231766]
[1730599579767,0.50214316,69002.0,68999.0,0.07231766]
[1730599579974,0.13916822,69000.0,68998.0,0.07231766]
[1730599580174,0.13916822,69000.0,68995.0,0.08677635]
[1730599580383,0.072492,68997.0,68996.0,0.18263719]
[1730599580585,0.21166022,68997.0,68996.0,0.09586084]
[1730599583571,0.13916822,68997.0,68994.0,0.07236027]
[1730599583776,0.433294,68995.0,68994.0,0.07236027]
[1730599583980,0.433294,68995.0,68994.0,0.16848246]
[1730599584380,0.433294,68995.0,68994.0,0.07236027]
[1730599584581,0.072496,68993.0,68992.0,0.07236027]
[1730599585287,0.072497,68992.0,68991.0,0.07236027]
[1730599585579,0.21166522,68992.0,68991.0,0.16859465]
[1730599586082,0.21166522,68992.0,68987.0,0.07236027]
[1730599586083,0.072499,68990.0,68987.0,0.07236027]
[1730599586271,0.072499,68990.0,68989.0,0.0725]
[1730599587406,0.13916822,68992.0,68988.0,0.07236027]
[1730599587407,0.0725,68989.0,68988.0,0.07236027]
[1730599587775,0.072501,68988.0,68987.0,0.07236027]
[1730599588076,0.072501,68988.0,68987.0,0.16877874]
[1730599588482,0.072501,68988.0,68987.0,0.16875779]
[1730599588668,0.072497,68992.0,68991.0,0.072496]
[1730599592976,0.072497,68992.0,68991.0,0.16897872]
[1730599593381,0.14134316,69002.0,68991.0,0.45728272]
[1730599593589,0.14134316,69002.0,68998.0,0.07235839]
[1730599593885,0.072491,68999.0,68998.0,0.072491]
[1730599594084,0.072491,68999.0,68998.0,0.16887988]
[1730599594380,0.072491,68999.0,68998.0,0.24123564]
[1730599594581,0.072491,68999.0,68998.0,0.24123894]
[1730599594791,0.072491,68999.0,68998.0,0.16887988]
[1730599595293,0.072491,68999.0,68998.0,0.09638888]
[1730599595489,0.072491,68999.0,68998.0,0.16874886]
[1730599595682,0.14134316,69002.0,68997.0,0.07235998]
[1730599595997,0.21165922,68998.0,68997.0,0.07235998]
[1730599596186,0.21165922,68998.0,68997.0,0.16881787]
[1730599596585,0.21165922,68998.0,68997.0,0.09645789]
[1730599596987,0.21165922,68998.0,68997.0,0.16882557]
[1730599597491,0.21165922,68998.0,68997.0,0.09645789]
[1730599597689,0.21165922,68998.0,68997.0,0.16882849]
[1730599597990,0.21165922,68998.0,68997.0,0.09645789]
[1730599598199,0.13916822,68998.0,68997.0,0.09642663]
[1730599598400,0.21165922,68998.0,68997.0,0.09642663]
[1730599598691,0.21165922,68998.0,68996.0,0.07239156]
[1730599598893,0.072493,68996.0,68995.0,0.07239156]
[1730599599207,0.072494,68995.0,68994.0,0.07239156]
[1730599599393,0.072494,68995.0,68994.0,0.16891788]
[1730599599600,0.072494,68995.0,68994.0,0.09652632]
[1730599600289,0.433294,68995.0,68994.0,0.09652632]
[1730599600489,0.072494,68995.0,68994.0,0.09652632]
[1730599600689,0.433294,68995.0,68994.0,0.09652632]
[1730599603589,0.433294,68995.0,68994.0,0.1689266]
[1730599604800,0.4771567,68995.0,68994.0,0.1689266]
[1730599604996,0.1163567,68995.0,68994.0,0.1689266]
[1730599605203,0.4771567,68995.0,68994.0,0.09652632]
[1730599606092,0.4771567,68995.0,68994.0,0.16893493]
[1730599606399,0.4771567,68995.0,68994.0,0.09652632]
[1730599606905,0.5092567,68995.0,68994.0,0.09652632]
[1730599607401,0.465394,68995.0,68994.0,0.09652632]
[1730599608697,0.562514,68995.0,68994.0,0.09652632]
[1730599609492,0.433294,68995.0,68994.0,0.09652632]
[1730599615215,0.529334,68995.0,68994.0,0.09652632]
[1730599619003,0.964134,68995.0,68994.0,0.09652632]
[1730599619204,0.964134,68995.0,68994.0,0.16901364]
[1730599619402,0.964134,68995.0,68994.0,0.07248732]
[1730599620113,0.964134,68995.0,68994.0,0.16934469]
[1730599620520,0.964134,68995.0,68994.0,0.07248732]
[1730599620814,0.964134,68995.0,68994.0,0.16931351]
[1730599620997,0.964134,68995.0,68994.0,0.07248732]
[1730599621915,0.964134,68995.0,68994.0,0.16928906]
[1730599622409,0.529334,68995.0,68994.0,0.16928906]
[1730599622596,0.529334,68995.0,68994.0,0.09680174]
[1730599623001,0.433294,68995.0,68994.0,0.09680174]
[1730599623198,0.529334,68995.0,68994.0,0.09680174]
[1730599626603,0.433294,68995.0,68994.0,0.09680174]
[1730599626921,0.3103,68995.0,68994.0,0.28426738]
[1730599632019,0.3103,68995.0,68994.0,0.18746564]
[1730599632418,0.3103,68995.0,68991.0,0.105497]
[1730599632722,0.21166522,68992.0,68991.0,0.105497]
[1730599633623,0.072498,68991.0,68990.0,0.10135276]
[1730599635115,0.072498,68991.0,68990.0,0.2101869]
[1730599636225,0.072498,68991.0,68988.0,0.434621]
[1730599636413,0.0725,68989.0,68988.0,0.29891923]
[1730599637015,0.0725,68989.0,68985.0,0.46215276]
[1730599637324,0.13916822,68986.0,68985.0,0.46215276]
[1730599637727,0.13916822,68986.0,68985.0,0.53465676]
[1730599638522,0.21167122,68986.0,68985.0,0.38232017]
[1730599640114,0.34158684,68986.0,68985.0,0.26625399]
[1730599640321,0.18823781,68986.0,68985.0,0.26625399]
[1730599640835,0.12991562,68986.0,68985.0,0.26625399]
[1730599641424,0.44140362,68986.0,68985.0,0.072504]
[1730599641627,0.48903581,68986.0,68985.0,0.072504]
[1730599641928,0.18459863,68986.0,68985.0,0.507384]
[1730599642235,0.03729841,68986.0,68985.0,0.507384]
[1730599642425,0.04763219,68986.0,68985.0,0.43488]
[1730599642632,0.04763219,68986.0,68985.0,0.507384]
[1730599642832,0.04763219,68986.0,68985.0,0.43488]
[1730599643125,0.04763219,68986.0,68985.0,0.507384]
[1730599643716,0.19992055,68987.0,68985.0,0.507384]
[1730599643939,0.15899756,68988.0,68986.0,0.57400822]
[1730599644229,0.00217494,69002.0,68987.0,0.35662543]
[1730599644421,0.00217494,69002.0,68999.0,0.07249]
[1730599644616,0.41675976,69000.0,68999.0,0.07249]
[1730599644930,0.05595976,69000.0,68999.0,0.50729]
[1730599645326,0.3608,69001.0,68999.0,0.4348]
[1730599645521,0.3608,69001.0,69000.0,0.507289]
[1730599645719,0.3608,69001.0,69000.0,0.072489]
[1730599645919,0.3608,69001.0,69000.0,0.507249]
[1730599646829,0.3608,69001.0,69000.0,0.59421365]
[1730599647718,0.00217494,69002.0,69001.0,0.072488]
[1730599647920,0.36297494,69002.0,69001.0,0.072488]
[1730599649132,0.3608,69002.0,69001.0,0.072488]
[1730599649336,0.3608,69002.0,69001.0,0.15945265]
[1730599649528,0.3608,69002.0,69001.0,0.159279]
[1730599650125,0.3608,69009.0,69008.0,0.07248]
[1730599650528,0.3608,69009.0,69008.0,0.5072]
[1730599650836,0.31728646,69009.0,69008.0,0.62218144]
[1730599651027,0.3608,69016.0,69015.0,0.072473]
[1730599651338,0.3608,69016.0,69015.0,0.16838315]
[1730599652224,0.3608,69016.0,69015.0,0.16841664]
[1730599652633,0.433272,69016.0,69015.0,0.16841664]
[1730599652829,0.433272,69016.0,69015.0,0.11769293]
[1730599653025,0.433272,69016.0,69012.0,0.07224929]
[1730599653026,0.3608,69016.0,69012.0,0.07224929]
[1730599653221,0.072476,69012.0,69010.0,0.07224929]
[1730599653534,0.0312,69011.0,69009.0,0.14472829]
[1730599653836,0.69119676,69010.0,69009.0,0.072479]
[1730599654041,0.61871876,69010.0,68998.0,0.21731364]
[1730599654238,0.21165422,69003.0,69002.0,0.072486]
[1730599654540,0.28533068,69003.0,69002.0,0.072486]
[1730599654735,0.21284468,69003.0,69002.0,0.072486]
[1730599658248,0.17326117,69003.0,69002.0,0.072486]
[1730599658659,0.20366117,69003.0,69002.0,0.072486]
[1730599659569,0.24308018,69003.0,69002.0,0.072486]
[1730599660844,0.3608,69010.0,69002.0,0.072486]
[1730599660845,0.13916822,69008.0,69007.0,0.07248]
[1730599661036,0.07248,69009.0,69007.0,0.07225077]
[1730599661339,0.07248,69009.0,69008.0,0.07248]
[1730599663135,0.3608,69010.0,69009.0,0.072479]
[1730599663339,0.3608,69010.0,69009.0,0.15920756]
[1730599664835,0.3608,69010.0,69009.0,0.072479]
[1730599665930,0.3608,69010.0,69008.0,0.07248]
[1730599665931,0.072479,69009.0,69008.0,0.07248]
[1730599667826,0.072479,69009.0,69008.0,0.16839729]
[1730599669034,0.10639216,69009.0,69008.0,0.07248]
[1730599669828,0.03391316,69009.0,69008.0,0.07248]
[1730599671226,0.03391316,69009.0,69003.0,0.3608]
[1730599671227,0.07337047,69009.0,69003.0,0.3608]
[1730599671438,0.0304,69014.0,69007.0,0.072481]
[1730599671439,0.03391316,69008.0,69007.0,0.072481]
[1730599671739,0.072478,69011.0,69003.0,0.40490522]
[1730599671938,0.07336572,69010.0,69003.0,0.40358522]
[1730599672833,0.14584472,69010.0,69003.0,0.3608]
[1730599673048,0.11839629,69009.0,69003.0,0.3608]
[1730599673226,0.11839629,69009.0,69008.0,0.07248]
[1730599674443,0.22868575,69009.0,69008.0,0.07248]
[1730599674742,0.22868575,69009.0,69005.0,0.072482]
[1730599674743,0.072483,69006.0,69005.0,0.072482]
[1730599675134,0.21701449,69006.0,69005.0,0.072482]
[1730599675334,0.36631078,69006.0,69005.0,0.072482]
[1730599675831,0.17543149,69006.0,69005.0,0.28301037]
[1730599676735,0.24791449,69006.0,69005.0,0.28301037]
[1730599676932,0.60871449,69006.0,69005.0,0.21052837]
[1730599677137,0.60871449,69006.0,69005.0,0.21040587]
[1730599677343,0.60871449,69006.0,69005.0,0.18297677]
[1730599680736,0.24791449,69006.0,69005.0,0.16853913]
[1730599681843,0.24791449,69006.0,69005.0,0.28280611]
[1730599682032,0.24791449,69006.0,69005.0,0.072483]
[1730599682237,0.24791449,69006.0,69005.0,0.28260649]
[1730599683947,0.32219536,69006.0,69005.0,0.072483]
[1730599684350,0.68299536,69006.0,69005.0,0.072483]
[1730599684748,0.072488,69001.0,69000.0,0.072489]
[1730599685045,0.10686063,69001.0,69000.0,0.072489]
[1730599685249,0.14647922,69001.0,69000.0,0.072489]
[1730599685850,0.14642662,69001.0,69000.0,0.072489]
[1730599686540,0.14612129,69001.0,69000.0,0.072489]
[1730599687151,0.10656097,69001.0,69000.0,0.072489]
[1730599687455,0.10656097,69001.0,68996.0,0.072492]
[1730599687456,0.072492,68997.0,68996.0,0.072492]
[1730599687758,0.10656497,68997.0,68996.0,0.072492]
[1730599688949,0.03407297,68997.0,68996.0,0.072492]
[1730599690841,0.434171,68998.0,68996.0,0.09634294]
[1730599691056,0.3608,68998.0,68997.0,0.28367203]
[1730599691261,0.433291,68998.0,68997.0,0.28367203]
[1730599691459,0.433291,68998.0,68997.0,0.21118003]
[1730599691643,0.3608,68998.0,68997.0,0.21139555]
[1730599691959,0.433291,68998.0,68997.0,0.09644126]
[1730599692154,0.433291,68998.0,68997.0,0.18332681]
[1730599693260,0.433291,68998.0,68997.0,0.09644126]
[1730599694363,0.3608,68998.0,68997.0,0.09651358]
[1730599694556,0.3608,68998.0,68996.0,0.08686671]
[1730599694750,0.072492,68997.0,68996.0,0.08686671]
[1730599695558,0.072493,68996.0,68995.0,0.15936071]
[1730599696761,0.072493,68996.0,68995.0,0.25592437]
[1730599697573,0.072493,68996.0,68995.0,0.15936071]
[1730599698654,0.072493,68996.0,68995.0,0.072494]
[1730599699651,0.16389065,68996.0,68995.0,0.072494]
[1730599701965,0.16389065,68996.0,68995.0,0.25575251]
[1730599702353,0.52469065,68996.0,68995.0,0.25575251]
[1730599702659,0.52469065,68996.0,68995.0,0.16890123]
[1730599703157,0.52469065,68996.0,68995.0,0.09640723]
[1730599704764,0.072494,68995.0,68994.0,0.00217407]
[1730599705268,0.433294,68995.0,68994.0,0.00217407]
[1730599707685,0.072507,68983.0,68977.0,0.05678496]
[1730599707885,0.09139765,68983.0,68977.0,0.01334387]
[1730599708164,0.072506,68984.0,68979.0,0.09139765]
[1730599708467,0.072506,68984.0,68983.0,0.072506]
[1730599708973,0.16390165,68986.0,68985.0,0.072504]
[1730599709158,0.3608,68987.0,68986.0,0.072503]
[1730599709376,0.3608,68987.0,68986.0,0.16390065]
[1730599709595,0.072496,68994.0,68993.0,0.072496]
[1730599710687,0.3608,68995.0,68994.0,0.072495]
[1730599710863,0.3608,68995.0,68994.0,0.102995]
[1730599711872,0.3608,68995.0,68994.0,0.75600889]
[1730599712096,0.3608,69006.0,69005.0,0.072483]
[1730599712289,0.3608,69006.0,69005.0,0.16388065]
[1730599712970,0.45219765,69006.0,69005.0,0.072483]
[1730599713878,0.45219765,69006.0,69005.0,0.28355333]
[1730599714770,0.09139765,69008.0,69005.0,0.21107033]
[1730599714977,0.09139765,69008.0,69007.0,0.072481]
[1730599715170,0.09139765,69008.0,69007.0,0.28355133]
[1730599715382,0.00217422,69009.0,69008.0,0.07248]
[1730599715580,0.00217422,69009.0,69008.0,0.28292929]
[1730599715772,0.00217422,69009.0,69008.0,0.71764929]
[1730599716280,0.00217422,69009.0,69008.0,0.28292929]
[1730599717189,0.45219765,69009.0,69008.0,0.28271435]
[1730599717401,0.52467665,69009.0,69008.0,0.16877289]
[1730599717614,0.52467665,69009.0,69008.0,0.09629289]
[1730599717615,0.55507665,69009.0,69008.0,0.09629289]
[1730599717765,0.6464743,69009.0,69008.0,0.09629289]
[1730599717974,0.55507665,69009.0,69008.0,0.09568999]
[1730599718194,0.55507665,69009.0,69008.0,0.07232565]
[1730599718393,0.07248,69008.0,69007.0,0.07232565]
[1730599718592,0.16387765,69008.0,69007.0,0.07232565]
[1730599719204,0.16387765,69008.0,69002.0,0.0867894]
[1730599719205,0.072485,69004.0,69002.0,0.0867894]
[1730599719408,0.09139765,69003.0,69002.0,0.0867894]
[1730599720795,0.09139765,69003.0,69001.0,0.072487]
[1730599720796,0.072487,69002.0,69001.0,0.072487]
[1730599721590,0.072487,69002.0,69001.0,0.18606552]
[1730599721798,0.072487,69002.0,69001.0,0.072487]
[1730599723077,0.072487,69002.0,69001.0,0.08677863]
[1730599723679,0.072487,69002.0,68999.0,0.08677863]
[1730599723985,0.072487,69002.0,69001.0,0.072488]
[1730599724282,0.072487,69002.0,68991.0,0.04501562]
[1730599724283,0.3608,69002.0,68998.0,0.08677863]
[1730599724481,0.072491,68998.0,68997.0,0.072491]
[1730599725781,0.072494,68995.0,68994.0,0.072495]
[1730599726078,0.16389165,68995.0,68994.0,0.18648011]
[1730599726285,0.16389165,68995.0,68994.0,0.072495]
[1730599726581,0.12319765,68995.0,68994.0,0.15929267]
[1730599727778,0.0318,68995.0,68994.0,0.072495]
[1730599728984,0.18711765,69005.0,69003.0,0.072485]
[1730599729203,0.09139765,69005.0,68997.0,0.09139765]
[1730599729482,0.09139765,69005.0,69004.0,0.072484]
[1730599731687,0.3608,69006.0,69005.0,0.072483]
[1730599733792,0.072486,69003.0,69000.0,0.072488]
[1730599733996,0.072486,69003.0,69002.0,0.072487]
[1730599735888,0.57329037,69006.0,69003.0,0.072485]
[1730599736083,0.57253037,69006.0,69003.0,0.072485]
[1730599736279,0.072487,69002.0,68993.0,0.072496]
[1730599736479,0.072487,69002.0,68991.0,0.04590379]
[1730599736480,0.072488,69001.0,68991.0,0.04590379]
[1730599736684,0.07249,68999.0,68992.0,0.072497]
[1730599736879,0.07249,68999.0,68991.0,0.04590379]
[1730599737085,0.0326,69000.0,68999.0,0.07249]
[1730599737385,0.072485,69004.0,69001.0,0.072487]
[1730599737591,0.072485,69004.0,69003.0,0.072485]
[1730599737787,0.072485,69004.0,69003.0,0.16820878]
[1730599738282,0.072485,69004.0,69003.0,0.25504089]
[1730599738483,0.072485,69004.0,69003.0,0.09572378]
[1730599738694,0.072485,69004.0,69003.0,0.18255589]
[1730599738888,0.072485,69004.0,69003.0,0.09572378]
[1730599739092,0.07249,68999.0,68998.0,0.08683211]
[1730599739395,0.21173737,68999.0,68998.0,0.18276772]
[1730599739596,0.57253737,68999.0,68998.0,0.18276772]
[1730599739802,0.57253737,68999.0,68991.0,0.0021741]
[1730599739991,0.13924737,68994.0,68992.0,0.11450957]
[1730599740188,0.21174237,68994.0,68993.0,0.11450957]
[1730599742494,0.13924737,68994.0,68991.0,0.0746721]
[1730599742688,0.072497,68992.0,68991.0,0.0746721]
[1730599742891,0.072497,68992.0,68991.0,0.18825315]
[1730599743996,0.072497,68992.0,68991.0,0.0746721]
[1730599746294,0.433297,68992.0,68991.0,0.0021741]
[1730599746503,0.46822364,68992.0,68991.0,0.0021741]
[1730599747100,0.46806556,68992.0,68991.0,0.0021741]
[1730599748297,0.0725,68989.0,68988.0,0.072501]
[1730599749803,0.072504,68985.0,68984.0,0.072505]
[1730599751205,0.072504,68985.0,68984.0,0.1862335]
[1730599751401,0.072504,68985.0,68984.0,0.18624362]
[1730599752504,0.04393457,68990.0,68984.0,0.18624362]
[1730599752708,0.072504,68985.0,68984.0,0.072505]
[1730599752906,0.072504,68985.0,68984.0,0.18612347]
[1730599753098,0.072504,68985.0,68984.0,0.072505]
[1730599754800,0.072504,68985.0,68984.0,0.1676214]
[1730599756307,0.072504,68985.0,68984.0,0.0951164]
[1730599756308,0.433304,68985.0,68984.0,0.0951164]
[1730599757706,0.072505,68984.0,68983.0,0.072506]
[1730599757909,0.072505,68984.0,68983.0,0.16776285]
[1730599759010,0.072505,68984.0,68983.0,0.09525685]
[1730599759215,0.072509,68981.0,68980.0,0.072508]
[1730599759407,0.21175637,68981.0,68980.0,0.072508]
[1730599759703,0.21175637,68981.0,68977.0,0.01334387]
[1730599759704,0.072512,68978.0,68977.0,0.08585587]
[1730599759901,0.072508,68982.0,68981.0,0.072507]
[1730599761807,0.16391943,68982.0,68981.0,0.072507]
[1730599762308,0.00088,68985.0,68984.0,0.072505]
[1730599762605,0.0315,68995.0,68986.0,0.072503]
[1730599762606,0.09141143,68987.0,68986.0,0.072503]
[1730599762807,0.16391343,68987.0,68986.0,0.072503]
[1730599763413,0.072503,68986.0,68979.0,0.0324]
[1730599763601,0.09141143,68987.0,68986.0,0.072503]
[1730599764107,0.16391343,68987.0,68986.0,0.072503]
[1730599764308,0.072506,68984.0,68982.0,0.072507]
[1730599764518,0.09141143,68983.0,68982.0,0.072507]
[1730599764902,0.16391343,68988.0,68985.0,0.072504]
[1730599765304,0.09141143,68988.0,68985.0,0.072504]
[1730599765511,0.072503,68986.0,68985.0,0.072504]
[1730599766207,0.072503,68986.0,68985.0,0.16831661]
[1730599766208,0.433303,68986.0,68985.0,0.16831661]
[1730599766413,0.433303,68986.0,68985.0,0.09581261]
[1730599766716,0.433303,68986.0,68985.0,0.16820148]
[1730599767013,0.072507,68983.0,68981.0,0.072509]
[1730599767209,0.072507,68983.0,68982.0,0.0959187]
[1730599767607,0.072507,68983.0,68982.0,0.07240458]
[1730599767812,0.072507,68983.0,68982.0,0.16847756]
[1730599768012,0.072507,68983.0,68982.0,0.07240458]
[1730599768209,0.072507,68983.0,68982.0,0.16853214]
[1730599768414,0.072507,68983.0,68982.0,0.09612756]
[1730599768614,0.072507,68983.0,68982.0,0.16855216]
[1730599768816,0.072507,68983.0,68982.0,0.16855156]
[1730599769615,0.072507,68983.0,68982.0,0.09612696]
[1730599769914,0.072507,68983.0,68982.0,0.16855636]
[1730599770317,0.16391843,68983.0,68982.0,0.16855636]
[1730599770515,0.09141143,68983.0,68981.0,0.1449384]
[1730599770816,0.16391743,68983.0,68982.0,0.0724294]
[1730599771001,0.09141143,68983.0,68981.0,0.1449384]
[1730599771206,0.072508,68982.0,68981.0,0.14493531]
[1730599771418,0.072508,68982.0,68981.0,0.24088093]
[1730599771621,0.16391943,68982.0,68981.0,0.16837193]
[1730599771917,0.16391943,68982.0,68981.0,0.07242631]
[1730599772419,0.16391943,68982.0,68981.0,0.16838964]
[1730599772420,0.072508,68982.0,68981.0,0.16838964]
[1730599773218,0.072508,68982.0,68981.0,0.09589614]
[1730599774214,0.16391943,68982.0,68981.0,0.21020487]
[1730599774419,0.16391943,68982.0,68981.0,0.09597414]
[1730599774718,0.19501943,68982.0,68981.0,0.09597414]
[1730599775115,0.19501943,68982.0,68981.0,0.18290229]
[1730599775516,0.19501943,68982.0,68981.0,0.09597414]
[1730599775702,0.19501943,68982.0,68981.0,0.18290614]
[1730599775903,0.103608,68982.0,68981.0,0.18290614]
[1730599777314,0.19501943,68982.0,68981.0,0.09597414]
[1730599777619,0.19501943,68982.0,68981.0,0.09614332]
[1730599777818,0.19501943,68982.0,68981.0,0.16857399]
[1730599778002,0.19501943,68982.0,68980.0,0.07243067]
[1730599778003,0.072509,68981.0,68980.0,0.07243067]
[1730599778317,0.16392043,68981.0,68980.0,0.07243067]
[1730599778519,0.16392043,68981.0,68979.0,0.07243067]
[1730599778708,0.52472143,68980.0,68979.0,0.07243067]
[1730599778902,0.52472143,68980.0,68979.0,0.16864206]
[1730599779814,0.072511,68979.0,68978.0,0.07243067]
[1730599780013,0.072511,68979.0,68978.0,0.16872187]
[1730599780209,0.09141143,68982.0,68981.0,0.072509]
[1730599780412,0.09141143,68985.0,68984.0,0.072505]
[1730599780720,0.16391543,68985.0,68984.0,0.28298024]
[1730599781417,0.23799314,68985.0,68984.0,0.072505]
[1730599781624,0.10684345,68985.0,68984.0,0.072505]
[1730599782107,0.15092162,68985.0,68984.0,0.072505]
[1730599783315,0.07841762,68985.0,68984.0,0.072505]
[1730599783523,0.04407817,68985.0,68984.0,0.072505]
[1730599783704,0.21179194,68986.0,68985.0,0.072504]
[1730599785517,0.25577571,68986.0,68985.0,0.072504]
[1730599786019,0.29011415,68986.0,68985.0,0.072504]
[1730599786213,0.21761015,68986.0,68985.0,0.072504]
[1730599787523,0.17362638,68986.0,68985.0,0.072504]
[1730599787913,0.1736571,68986.0,68985.0,0.072504]
[1730599789020,0.03436916,68986.0,68985.0,0.072504]
[1730599789320,0.04456664,68988.0,68987.0,0.072502]
[1730599789516,0.0725,68990.0,68987.0,0.16820869]
[1730599789716,0.0725,68990.0,68989.0,0.0725]
[1730599790426,0.072501,68988.0,68987.0,0.07242046]
[1730599790623,0.072502,68987.0,68986.0,0.07242046]
[1730599790813,0.072502,68987.0,68986.0,0.16833747]
[1730599792218,0.072502,68987.0,68986.0,0.24084047]
[1730599795532,0.072502,68987.0,68986.0,0.24103628]
[1730599795717,0.072502,68987.0,68986.0,0.072503]
[1730599796318,0.11846339,68987.0,68982.0,0.072507]
[1730599796516,0.11846339,68987.0,68969.0,0.36621306]
[1730599796517,0.07251,68980.0,68979.0,0.07251]
[1730599797223,0.19097339,68980.0,68979.0,0.07251]
[1730599798123,0.19097339,68980.0,68970.0,0.0339]
[1730599798124,0.072512,68978.0,68970.0,0.0339]
[1730599798318,0.29077553,68978.0,68977.0,0.08585587]
[1730599798511,0.33026333,68978.0,68977.0,0.08585587]
[1730599799921,0.32939925,68978.0,68977.0,0.08585587]
[1730599801628,0.28153531,68978.0,68977.0,0.08585587]
[1730599802922,0.28142369,68978.0,68977.0,0.08585587]
[1730599803320,0.36765637,68978.0,68970.0,0.0339]
[1730599803531,0.072515,68975.0,68974.0,0.072515]
[1730599803827,0.14540795,68975.0,68974.0,0.072515]
[1730599804017,0.19000269,68975.0,68974.0,0.072515]
[1730599804325,0.072515,68975.0,68974.0,0.28387423]
[1730599804637,0.163939,68975.0,68974.0,0.28387423]
[1730599807326,0.163939,68975.0,68974.0,0.28413976]
[1730599808920,0.12040477,68975.0,68974.0,0.28413976]
[1730599809125,0.091424,68975.0,68974.0,0.28413976]
[1730599809932,0.163939,68975.0,68974.0,0.28413976]
[1730599810526,0.255363,68975.0,68974.0,0.09654583]
[1730599810731,0.197839,68975.0,68974.0,0.16899189]
[1730599810924,0.197839,68975.0,68974.0,0.07244606]
[1730599811131,0.197839,68975.0,68974.0,0.096521]
[1730599811327,0.197839,68975.0,68974.0,0.16897621]
[1730599811526,0.197839,68975.0,68974.0,0.07242713]
[1730599813341,0.072516,68974.0,68973.0,0.07242713]
[1730599813531,0.23204,68974.0,68973.0,0.16894022]
[1730599814339,0.23204,68974.0,68973.0,0.07242713]
[1730599815231,0.072517,68973.0,68972.0,0.07242713]
[1730599815430,0.163941,68973.0,68972.0,0.07242713]
[1730599815636,0.163941,68973.0,68970.0,0.07242713]
[1730599815831,0.07252,68970.0,68969.0,0.07784019]
[1730599816030,0.52884,68970.0,68969.0,0.00541306]
[1730599818432,0.43332,68970.0,68969.0,0.24702888]
[1730599818734,0.07252,68970.0,68969.0,0.11343406]
[1730599818929,0.07252,68970.0,68969.0,0.24212549]
[1730599819327,0.07252,68970.0,68969.0,0.14553406]
[1730599819737,0.163944,68970.0,68969.0,0.14553406]
[1730599820439,0.07252,68970.0,68969.0,0.14553406]
[1730599820837,0.163944,68970.0,68969.0,0.00541306]
[1730599821035,0.255368,68970.0,68969.0,0.00541306]
[1730599821338,0.163944,68970.0,68969.0,0.00541306]
[1730599821931,0.255368,68970.0,68969.0,0.00541306]
[1730599822645,0.524744,68970.0,68969.0,0.00541306]
[1730599824139,0.07253,68961.0,68940.0,0.04922679]
[1730599824443,0.976987,68952.0,68940.0,0.00581986]
[1730599824628,0.976987,68952.0,68943.0,0.072548]
[1730599824834,1.412067,68952.0,68943.0,0.072548]
[1730599825246,1.412067,68952.0,68940.0,0.00581986]
[1730599825453,1.507707,68952.0,68940.0,0.00581986]
[1730599825863,1.146907,68952.0,68940.0,0.00581986]
[1730599826549,1.146907,68952.0,68949.0,0.05787591]
[1730599826745,1.146907,68952.0,68945.0,0.07234488]
[1730599826746,1.146907,68952.0,68950.0,0.15787591]
[1730599827252,1.146947,68952.0,68950.0,0.1]
[1730599827763,1.14740393,68952.0,68950.0,0.1]
[1730599828257,1.14740393,68952.0,68951.0,0.05087375]
[1730599828567,1.14740393,68952.0,68951.0,0.00753447]
[1730599829659,1.28678349,68952.0,68951.0,0.00753447]
[1730599830157,1.14740393,68952.0,68951.0,0.00753447]
[1730599830569,1.05172393,68952.0,68951.0,0.00753447]
[1730599831171,1.14740393,68952.0,68951.0,0.00753447]
[1730599831460,1.14740393,68952.0,68951.0,0.05084927]